bitfinex/quotes_ETHUSD_20250801
["timestamp","ask_amount","ask_price","bid_price","bid_amount"]
[1754086200200,1.35739201,3518.9,3517.9,3.0]
[1754086200526,6.828,3519.3,3519.2,2.84155489]
[1754086200747,6.828,3519.3,3518.0,2.84248813]
[1754086201054,4.61,3519.2,3518.4,0.4343]
[1754086201270,4.61,3519.2,3518.9,3.0]
[1754086201481,4.61,3519.2,3518.8,2.84184718]
[1754086201692,4.61,3519.2,3518.6,2.84197634]
[1754086201693,0.4717,3519.1,3518.6,3.0]
[1754086201830,7.45157873,3519.2,3518.6,3.0]
[1754086202037,0.4717,3519.0,3518.4,3.0]
[1754086202380,3.31344498,3519.0,3518.4,3.0]
[1754086202560,0.1424,3518.9,3518.4,0.1424]
[1754086202878,0.1424,3518.9,3518.5,0.4343]
[1754086203079,4.607,3518.8,3518.6,0.4702]
[1754086203252,4.607,3518.8,3518.7,3.27625867]
[1754086203454,4.607,3518.8,3518.7,3.88885867]
[1754086203991,4.607,3518.8,3518.7,3.41865867]
[1754086204282,4.607,3518.8,3518.5,2.84411018]
[1754086204283,5.5394,3518.8,3518.5,0.002]
[1754086204461,5.0677,3518.8,3518.5,0.002]
[1754086204776,0.4717,3518.7,3518.5,0.002]
[1754086205186,0.6141,3518.7,3518.5,0.002]
[1754086205359,0.4717,3518.6,3518.5,0.002]
[1754086206347,3.78053944,3518.6,3518.5,0.002]
[1754086206558,0.9385,3518.6,3518.5,0.002]
[1754086206976,0.4717,3518.6,3518.5,0.002]
[1754086207283,3.31373944,3518.6,3518.5,0.002]
[1754086207444,4.48947886,3518.6,3518.5,0.002]
[1754086207852,4.95627886,3518.6,3518.5,0.002]
[1754086209550,5.50627886,3518.6,3518.5,0.002]
[1754086209759,5.50627886,3518.6,3518.5,1e-08]
[1754086211172,9.08147886,3518.6,3518.5,1e-08]
[1754086211496,9.54827886,3518.6,3518.5,1e-08]
[1754086211675,4.48947886,3518.6,3518.5,1e-08]
[1754086211985,0.99476796,3518.7,3518.5,1e-08]
[1754086211986,0.1424,3518.7,3518.5,1e-08]
[1754086212208,6.828,3519.3,3518.5,1e-08]
[1754086212385,4.597,3519.2,3519.0,2.84169931]
[1754086212603,4.597,3519.2,3519.0,3.27599931]
[1754086212987,6.828,3519.3,3519.1,3.88851384]
[1754086213189,4.595,3519.2,3519.1,0.1424]
[1754086213388,4.595,3519.2,3518.9,0.1424]
[1754086213795,4.595,3519.2,3518.5,2.84211836]
[1754086213796,6.03568661,3519.2,3518.5,1e-08]
[1754086214002,0.1424,3518.9,3518.5,1e-08]
[1754086214317,0.1424,3518.9,3518.7,2.84190513]
[1754086214483,0.1424,3518.9,3518.6,3.0]
[1754086214484,0.1424,3518.9,3518.8,0.4343]
[1754086214683,4.596,3518.9,3518.8,3.27617791]
[1754086215199,4.596,3518.9,3518.8,0.4343]
[1754086215605,0.1424,3519.1,3518.8,0.4343]
[1754086215925,4.595,3519.0,3518.9,3.72678482]
[1754086216108,4.593,3519.0,3518.9,3.72678482]
[1754086216305,6.828,3519.3,3519.1,2.84163001]
[1754086216485,6.828,3519.3,3519.1,3.27373001]
[1754086216812,4.591,3519.2,3519.1,2.84163001]
[1754086217025,6.828,3519.3,3519.2,3.29445489]
[1754086217225,11.418,3519.3,3519.2,3.29445489]
[1754086217380,11.418,3519.3,3519.2,3.72655489]
[1754086217581,11.418,3519.3,3519.2,3.27365489]
[1754086217825,11.418,3519.3,3519.2,3.72655489]
[1754086218494,11.418,3519.3,3519.2,3.27365489]
[1754086218694,11.418,3519.3,3519.2,3.72655489]
[1754086219092,6.828,3519.3,3519.2,3.72655489]
[1754086219300,11.418,3519.3,3519.2,3.72655489]
[1754086219493,0.1434,3519.8,3519.2,0.885]
[1754086219697,4.584,3519.6,3519.5,2.841281]
[1754086220563,0.001,3519.8,3519.6,5.84123195]
[1754086220774,0.001,3519.8,3519.6,13.00818308]
[1754086221043,0.001,3519.8,3519.6,13.15058308]
[1754086221748,0.4721,3521.3,3521.1,2.83997029]
[1754086221905,4.584,3521.2,3521.1,2.83997029]
[1754086222237,4.584,3521.2,3521.1,3.72497029]
[1754086222407,0.1416,3521.9,3521.7,2.83953772]
[1754086222735,4.583,3521.8,3521.7,2.83953772]
[1754086223237,4.583,3521.8,3521.5,0.1416]
[1754086223906,4.583,3521.8,3521.7,2.83953772]
[1754086224102,4.58,3521.8,3521.7,2.83945884]
[1754086224316,6.828,3522.7,3521.7,0.4321]
[1754086224521,0.73001,3522.6,3522.2,2.83912359]
[1754086224722,4.58,3522.5,3522.2,2.98072359]
[1754086224922,4.58,3522.5,3522.2,0.1416]
[1754086226326,4.58,3522.5,3522.3,2.83903353]
[1754086226665,4.58,3522.5,3522.3,0.4321]
[1754086226961,2.98017049,3522.9,3522.4,0.1416]
[1754086227138,2.98017049,3522.9,3522.4,2.98056009]
[1754086227139,0.29811705,3522.8,3522.4,2.98056009]
[1754086227341,4.575,3522.7,3522.4,0.1416]
[1754086227509,4.574,3522.6,3522.4,2.98055253]
[1754086227943,4.574,3522.6,3522.4,0.1416]
[1754086228462,0.1416,3522.9,3522.5,0.4321]
[1754086228758,0.1416,3522.9,3522.6,0.4321]
[1754086228910,4.57,3522.8,3522.7,0.4321]
[1754086229107,0.001,3523.0,3522.9,2.83857049]
[1754086229643,0.001,3523.0,3522.9,13.66458381]
[1754086230160,0.001,3523.0,3522.9,13.14712162]
[1754086232169,0.86722117,3524.2,3523.3,2.83817963]
[1754086232311,0.86722117,3524.2,3524.0,2.83768444]
[1754086232528,4.564,3524.2,3524.1,5.97920392]
[1754086233030,4.564,3524.2,3524.1,3.1416]
[1754086233226,5.0361,3524.2,3524.1,0.1416]
[1754086233426,5.53971,3524.2,3524.0,0.1416]
[1754086233644,0.4721,3524.1,3524.0,0.1416]
[1754086233848,4.564,3524.2,3524.0,0.1416]
[1754086234064,0.4721,3524.1,3524.0,0.1416]
[1754086234958,0.4721,3524.1,3522.9,3.0]
[1754086234959,2.83775669,3524.0,3522.9,3.0]
[1754086235126,0.9454,3523.9,3522.5,0.4321]
[1754086235324,2.83832879,3523.2,3522.9,0.1416]
[1754086235529,5.0351,3523.1,3522.9,0.1416]
[1754086236146,0.4721,3523.0,3522.9,0.1416]
[1754086236349,0.9454,3523.0,3522.2,2.8390811]
[1754086236654,3.7838917,3523.0,3522.7,0.1416]
[1754086236828,0.4721,3522.9,3522.7,0.1416]
[1754086237029,0.4721,3522.8,3522.7,0.1416]
[1754086237327,4.563,3523.1,3523.0,2.83848992]
[1754086237525,4.563,3523.1,3522.7,0.1416]
[1754086237729,3.3106544,3523.0,3522.6,0.1416]
[1754086237913,0.4721,3523.0,3522.6,0.1416]
[1754086238319,0.4721,3523.9,3522.5,3.0]
[1754086238542,4.562,3523.8,3523.2,2.83827731]
[1754086238713,4.562,3523.8,3522.7,3.4321]
[1754086238934,4.562,3523.8,3523.7,0.1416]
[1754086239143,5.0341,3523.8,3523.7,0.1416]
[1754086239872,5.0331,3523.8,3523.7,0.1416]
[1754086240441,4.561,3523.8,3523.7,0.1416]
[1754086241131,5.0331,3523.8,3523.7,0.1416]
[1754086241332,5.0321,3523.8,3523.7,0.1416]
[1754086242237,5.0291,3523.8,3523.6,0.1416]
[1754086242435,3.78332604,3523.7,3523.6,0.1416]
[1754086242635,2.83800658,3523.6,3522.9,0.1416]
[1754086242873,0.1416,3523.4,3522.9,0.1416]
[1754086243093,0.4721,3523.3,3522.9,0.1416]
[1754086243236,2.83766225,3524.1,3523.8,2.83777207]
[1754086243237,0.4721,3524.1,3523.8,2.83777207]
[1754086243435,5.0281,3524.0,3523.8,0.1416]
[1754086243861,0.1416,3524.3,3524.2,2.8375234]
[1754086244176,0.1416,3524.3,3523.8,0.1416]
[1754086244177,0.6137,3524.3,3524.0,2.83762008]
[1754086244354,7.2921,3524.9,3524.8,2.83704039]
[1754086244675,11.8591,3524.9,3524.8,2.83704039]
[1754086244879,11.387,3524.9,3524.8,2.83704039]
[1754086245191,11.8591,3524.9,3524.6,2.97872597]
[1754086245387,11.8591,3524.9,3524.8,2.83704039]
[1754086245860,0.1416,3525.1,3524.6,0.1416]
[1754086246064,0.4736,3524.9,3524.7,2.83710661]
[1754086246265,0.4736,3524.8,3524.6,0.1416]
[1754086246472,0.1416,3524.7,3524.2,0.1416]
[1754086246670,0.9029,3524.6,3524.2,0.1416]
[1754086246870,0.9029,3524.5,3524.2,0.1416]
[1754086247070,4.567,3524.4,3524.2,0.1416]
[1754086247383,5.0406,3524.4,3524.2,0.1416]
[1754086247679,3.74034289,3524.3,3524.2,0.1416]
[1754086248379,0.9029,3524.3,3523.9,0.1416]
[1754086248589,0.4736,3524.2,3523.9,0.1416]
[1754086248745,0.4736,3524.2,3522.7,0.4574]
[1754086248746,4.563,3524.1,3522.7,0.4574]
[1754086249290,4.563,3524.1,3522.5,2.83885682]
[1754086249291,0.1416,3523.7,3523.1,0.1416]
[1754086249486,5.0376,3523.6,3523.1,0.1416]
[1754086249791,0.4736,3523.5,3523.1,2.97998716]
[1754086249946,0.4736,3523.4,3523.1,2.97998716]
[1754086250153,4.563,3523.3,3523.2,2.83832879]
[1754086250590,4.563,3523.3,3523.1,2.97997988]
[1754086250894,4.563,3523.3,3523.1,0.1416]
[1754086251094,4.563,3523.3,3523.2,2.83832879]
[1754086251686,4.563,3523.3,3523.1,2.97998169]
[1754086251987,4.563,3523.3,3523.2,2.83832879]
[1754086252576,0.1416,3523.7,3523.1,0.1416]
[1754086252783,4.56,3523.6,3523.4,2.83810893]
[1754086252997,0.1416,3523.7,3523.6,2.83800658]
[1754086253194,4.556,3523.7,3523.5,0.1416]
[1754086253396,4.556,3523.7,3523.6,2.83800658]
[1754086255300,5.9146,3523.7,3523.4,2.8381081]
[1754086255474,5.0266,3523.6,3523.4,2.8381081]
[1754086255859,4.553,3523.6,3523.4,2.8381081]
[1754086256170,0.4736,3523.5,3523.4,2.8381081]
[1754086256558,0.001,3524.0,3523.9,2.83776497]
[1754086256759,4.558,3524.0,3523.9,2.83776497]
[1754086257790,4.556,3524.0,3523.9,6.29516497]
[1754086258011,0.001,3524.0,3523.9,6.74906497]
[1754086258220,4.556,3524.0,3523.9,7.70775763]
[1754086258519,0.4736,3525.0,3523.9,4.86999266]
[1754086258689,4.555,3524.9,3524.7,2.83705806]
[1754086258886,0.4736,3525.0,3524.2,2.83748365]
[1754086259088,3.26583512,3525.5,3524.2,2.83748365]
[1754086259089,0.4293,3525.5,3524.8,2.83698225]
[1754086259420,4.555,3525.1,3524.2,0.4574]
[1754086259620,0.9292,3525.0,3524.5,2.83728067]
[1754086259920,0.4736,3524.9,3524.5,2.83728067]
[1754086260222,0.9029,3524.9,3523.8,0.4574]
[1754086260390,0.9029,3524.8,3523.2,0.4574]
[1754086260591,2.83722029,3524.6,3523.5,3.0]
[1754086260786,0.4736,3524.5,3524.3,2.8374244]
[1754086261011,4.554,3524.4,3524.2,2.83749716]
[1754086261216,0.4736,3524.3,3524.0,3.0]
[1754086261437,4.554,3524.4,3524.2,2.83745562]
[1754086261612,0.4736,3524.3,3524.1,3.0]
[1754086261819,0.4736,3524.2,3524.0,2.83767392]
[1754086262126,0.4736,3524.3,3523.7,3.0]
[1754086262322,0.4736,3524.3,3523.9,2.83770719]
[1754086262623,4.554,3524.4,3523.9,0.4574]
[1754086262823,2.83724751,3524.6,3523.9,2.83776497]
[1754086263023,5.0256,3524.3,3524.1,2.83756487]
[1754086263231,4.552,3524.3,3524.2,2.8375234]
[1754086263536,4.552,3524.3,3523.8,2.83779164]
[1754086263690,4.552,3524.3,3523.9,2.83776417]
[1754086263895,0.4736,3524.2,3523.9,2.83776417]
[1754086264117,0.4736,3524.2,3523.3,0.67497508]
[1754086264118,0.4736,3524.1,3523.6,3.0]
[1754086264300,0.4293,3524.1,3523.1,5.838349]
[1754086264520,0.4736,3524.0,3523.6,2.83795993]
[1754086264739,5.0226,3523.9,3523.6,2.83795993]
[1754086264912,5.0226,3523.9,3523.3,3.0]
[1754086264913,4.549,3523.9,3523.3,3.0]
[1754086265097,4.549,3523.9,3523.2,2.83825577]
[1754086265098,0.4736,3523.8,3523.4,5.83815452]
[1754086265427,0.9029,3523.7,3522.9,2.83850888]
[1754086265648,2.83810203,3523.5,3522.8,0.002]
[1754086265949,0.82896228,3523.8,3522.8,0.002]
[1754086265950,4.548,3523.4,3522.8,0.002]
[1754086266241,4.548,3523.3,3522.9,2.83849584]
[1754086266528,4.548,3523.3,3522.8,2.84062214]
[1754086266529,0.1416,3523.0,3522.8,0.002]
[1754086266733,7.38657049,3522.9,3522.8,0.002]
[1754086266896,5.0216,3522.9,3522.8,0.002]
[1754086267328,4.548,3522.9,3522.8,0.002]
[1754086268033,4.545,3522.9,3522.8,2.84065107]
[1754086268336,0.001,3524.8,3523.4,2.8381405]
[1754086268496,0.001,3524.8,3522.9,3.0]
[1754086268497,4.545,3523.9,3523.5,2.83807103]
[1754086268697,0.9029,3524.4,3523.9,2.83776497]
[1754086268898,0.4736,3524.4,3523.9,2.83776497]
[1754086269207,11.368,3524.0,3523.1,2.8383299]
[1754086269412,0.4736,3523.9,3523.3,2.83820093]
[1754086269726,0.4736,3523.9,3523.4,2.83816173]
[1754086269936,0.4736,3523.9,3523.5,2.83807994]
[1754086270121,11.7973,3524.0,3523.6,2.83799341]
[1754086270319,6.819,3524.0,3523.7,2.83792604]
[1754086270523,4.55,3523.9,3523.8,2.8378455]
[1754086270945,5.0236,3523.9,3523.3,2.83819697]
[1754086271111,5.0236,3523.9,3523.4,2.83813382]
[1754086271295,0.4736,3523.8,3523.6,2.83798966]
[1754086271498,6.819,3524.0,3523.7,0.4574]
[1754086271703,6.819,3524.0,3523.9,2.83776497]
[1754086271948,11.38,3524.0,3523.9,2.83776497]
[1754086272237,6.819,3524.0,3523.9,6.29516497]
[1754086272414,0.4746,3524.8,3524.6,2.83714906]
[1754086272611,0.4746,3524.8,3524.7,2.83712088]
[1754086272612,0.001,3524.8,3524.7,2.83712088]
[1754086272819,4.56,3524.8,3524.7,3.29452088]
[1754086273064,4.56,3524.8,3524.4,3.0]
[1754086273216,4.56,3524.8,3524.6,2.83715386]
[1754086273414,4.56,3524.8,3524.7,2.83712088]
[1754086273951,4.56,3524.8,3524.5,2.83722879]
[1754086274157,4.559,3524.7,3524.2,0.4574]
[1754086274310,4.559,3524.7,3524.6,2.83720138]
[1754086274505,0.001,3524.8,3524.7,2.83712088]
[1754086274748,4.558,3524.8,3524.7,2.83712088]
[1754086275113,4.556,3524.8,3524.7,6.29452088]
[1754086275313,4.556,3524.8,3524.7,7.39003953]
[1754086275914,0.001,3524.8,3524.7,7.39003953]
[1754086276359,4.554,3524.8,3524.7,7.39003953]
[1754086276655,4.554,3524.8,3524.7,5.83712088]
[1754086276952,4.553,3524.8,3524.7,5.97872088]
[1754086277610,4.553,3524.8,3524.7,3.1416]
[1754086277816,5.0123,3524.8,3524.7,5.97872088]
[1754086278149,5.0123,3524.8,3524.7,3.1416]
[1754086279115,5.0123,3524.8,3524.7,5.97872088]
[1754086279747,5.0123,3524.8,3524.7,3.1416]
[1754086280048,5.0123,3524.8,3524.7,5.97872088]
[1754086280253,4.553,3524.8,3524.7,5.97872088]
[1754086280614,4.553,3524.8,3524.7,6.45022088]
[1754086281221,4.553,3524.8,3524.7,5.97872088]
[1754086281871,4.553,3524.8,3524.7,0.1416]
[1754086282015,5.0123,3524.8,3524.7,2.97872088]
[1754086282453,5.0123,3524.8,3524.7,0.1416]
[1754086283032,5.0123,3524.8,3524.7,2.97872088]
[1754086283649,5.0123,3524.8,3524.7,2.83712088]
[1754086283853,5.0123,3524.8,3524.5,0.1416]
[1754086284041,0.4593,3524.7,3524.5,0.1416]
[1754086284968,0.9277,3524.6,3523.2,0.002]
[1754086285181,2.83736238,3524.4,3523.2,0.002]
[1754086285460,0.55,3524.3,3523.2,0.002]
[1754086285662,0.1416,3523.5,3523.2,0.002]
[1754086285965,7.37822604,3523.4,3523.2,0.002]
[1754086286261,4.9993,3523.4,3523.2,0.002]
[1754086286562,0.4593,3523.3,3523.2,0.002]
[1754086286862,4.54,3523.4,3523.2,0.002]
[1754086287437,0.4593,3523.8,3523.4,2.83816767]
[1754086287765,2.83809789,3523.5,3523.2,0.002]
[1754086287972,4.536,3523.4,3523.2,0.002]
[1754086288166,2.97984823,3523.3,3523.2,0.002]
[1754086288469,3.90754823,3523.3,3523.2,0.002]
[1754086288866,2.83764109,3524.1,3523.2,0.002]
[1754086288867,2.83584889,3526.3,3523.2,6.28395113]
[1754086289046,4.3813,3525.3,3524.3,3.0]
[1754086289374,0.4684,3525.8,3523.9,6.28195113]
[1754086289375,5.0913,3524.7,3524.0,3.0]
[1754086289536,5.0913,3524.7,3524.2,2.83750783]
[1754086289732,0.9277,3524.6,3524.3,2.8374357]
[1754086290039,0.4593,3524.5,3524.4,2.83730412]
[1754086290365,0.4593,3524.5,3523.4,3.0]
[1754086290569,0.4593,3524.5,3524.4,2.83736238]
[1754086291578,5.0903,3524.5,3524.4,2.83736238]
[1754086292235,0.001,3524.8,3524.7,2.83712088]
[1754086292438,0.001,3524.8,3524.7,5.83712088]
[1754086292647,0.001,3524.8,3524.7,6.79912088]
[1754086292947,0.001,3524.8,3524.7,7.62397586]
[1754086293346,0.001,3525.2,3525.1,2.83679895]
[1754086293541,4.628,3525.2,3525.1,2.83679895]
[1754086293870,1e-08,3525.2,3525.1,6.79879895]
[1754086295182,1e-08,3525.2,3525.1,5.83679895]
[1754086299040,1e-08,3525.2,3525.1,14.37343]
[1754086299363,1e-08,3525.2,3525.1,19.53943]
[1754086300063,7.2773,3527.1,3527.0,2.83527076]
[1754086300269,11.8913,3527.1,3527.0,2.83527076]
[1754086300866,7.2773,3527.1,3527.0,2.83527076]
[1754086301191,11.8903,3527.1,3527.0,2.83527076]
[1754086301554,4.613,3527.1,3527.0,2.83527076]
[1754086302295,0.1416,3527.2,3526.7,0.1416]
[1754086302603,0.1416,3527.2,3526.3,3.0]
[1754086302604,0.001,3527.6,3527.5,2.83486888]
[1754086302751,0.001,3527.6,3527.5,5.83486888]
[1754086303062,0.001,3527.6,3527.5,5.97646888]
[1754086303448,0.001,3527.6,3527.5,6.44796888]
[1754086303748,0.001,3527.6,3527.5,8.49495703]
[1754086303948,0.001,3527.6,3527.5,6.93846888]
[1754086304788,0.001,3527.6,3527.5,7.48846888]
[1754086305087,1e-08,3527.6,3527.5,7.48846888]
[1754086305595,1e-08,3527.6,3527.5,12.10046888]
[1754086306756,1e-08,3527.6,3527.5,7.48846888]
[1754086307070,1e-08,3527.6,3527.5,12.09446888]
[1754086309596,1e-08,3527.6,3527.5,12.94570988]
[1754086310490,1e-08,3527.6,3527.5,8.33970988]
[1754086310694,1e-08,3527.6,3527.5,12.93570988]
[1754086312961,1e-08,3527.6,3527.5,12.92870988]
[1754086314961,1e-08,3527.6,3526.6,2.83554961]
[1754086314962,0.45450001,3527.6,3526.5,0.4699]
[1754086315100,0.92280001,3527.6,3526.6,4.588]
[1754086315436,0.4545,3527.5,3527.2,3.0]
[1754086315612,0.4683,3527.4,3526.6,2.83559235]
[1754086315814,0.4545,3527.3,3524.8,0.4699]
[1754086316008,0.4545,3527.3,3524.7,2.83710535]
[1754086316009,3.55,3527.1,3524.7,2.83710535]
[1754086316333,0.55,3526.9,3525.1,2.83674754]
[1754086316537,2.83551195,3526.7,3525.4,3.0]
[1754086316710,5.29501881,3527.0,3524.9,4.599]
[1754086316711,0.55,3526.9,3524.9,4.599]
[1754086316915,0.55,3526.9,3525.2,2.83671768]
[1754086316916,2.83619966,3525.9,3525.2,2.83671768]
[1754086317119,0.4545,3525.8,3525.4,2.836529]
[1754086317353,2.83601539,3526.1,3525.7,3.0]
[1754086317506,0.4683,3526.0,3525.7,3.0]
[1754086317705,0.4683,3526.5,3525.9,2.8360795]
[1754086317904,0.4545,3526.0,3525.9,2.8360795]
[1754086318101,0.4545,3526.5,3526.4,3.0]
[1754086318327,0.9228,3526.5,3525.8,3.0]
[1754086318606,0.4545,3526.4,3526.0,3.0]
[1754086318806,0.9228,3526.4,3526.0,3.0]
[1754086319002,0.9228,3526.3,3525.7,3.0]
[1754086319218,0.4545,3526.2,3525.7,5.83631596]
[1754086319527,0.4545,3526.1,3525.7,5.83631619]
[1754086319727,0.4545,3526.0,3524.9,0.4699]
[1754086320053,0.9228,3526.0,3525.1,3.0]
[1754086320264,0.4545,3526.5,3526.0,3.0]
[1754086320414,0.4545,3526.5,3526.2,3.0]
[1754086320616,0.4545,3526.5,3526.4,2.83575317]
[1754086320936,5.0613,3526.9,3526.4,2.83575317]
[1754086320937,0.9228,3526.9,3526.5,3.0]
[1754086321136,0.4545,3526.9,3526.5,2.83566365]
[1754086321357,0.4545,3526.9,3526.7,2.83545155]
[1754086321515,0.9228,3526.8,3525.1,3.0]
[1754086321738,0.55,3526.6,3523.9,0.4699]
[1754086322071,2.83697032,3524.9,3524.3,2.83741193]
[1754086322257,0.4545,3524.8,3524.4,2.83730572]
[1754086322458,0.4545,3524.7,3524.4,3.0]
[1754086322772,0.4683,3525.1,3524.8,3.0]
[1754086322987,0.4683,3525.6,3524.2,0.4699]
[1754086323187,2.83631907,3525.7,3524.8,0.4699]
[1754086323388,0.9228,3525.6,3524.7,3.0]
[1754086323672,0.9228,3525.6,3524.0,2.83763982]
[1754086323673,2.8366276,3525.4,3524.2,4.62]
[1754086323872,0.4545,3525.3,3524.3,3.0]
[1754086324039,0.4545,3525.3,3525.0,2.83685274]
[1754086324236,0.4545,3525.5,3525.3,5.83662728]
[1754086324572,0.4545,3525.9,3525.4,5.83655755]
[1754086324783,0.4683,3526.0,3525.4,3.0]
[1754086324986,0.4545,3525.8,3525.6,0.1416]
[1754086325135,0.4545,3525.8,3525.7,2.83631619]
[1754086325342,0.4545,3525.8,3525.6,0.1416]
[1754086325571,11.8935,3526.2,3525.6,0.1416]
[1754086325869,11.8935,3526.2,3526.0,2.83607311]
[1754086326171,0.4545,3526.1,3526.0,2.83607311]
[1754086326852,0.4545,3526.1,3526.0,2.97767311]
[1754086327052,0.1416,3526.5,3526.0,5.97767311]
[1754086327382,0.1416,3526.8,3526.7,3.0]
[1754086327671,0.4545,3527.4,3526.9,3.0]
[1754086327841,0.4545,3527.4,3527.3,2.83502962]
[1754086328671,4.62100001,3527.6,3527.5,2.83486888]
[1754086328870,5.07550001,3527.6,3527.3,0.1416]
[1754086329169,0.4545,3527.5,3527.3,2.9765535]
[1754086329380,0.4545,3527.5,3527.4,2.83494925]
[1754086329753,1.47718,3527.5,3526.0,1.06766731]
[1754086330055,0.1416,3527.3,3527.2,2.83511]
[1754086330244,0.1416,3527.3,3527.1,2.83516855]
[1754086330245,0.4545,3527.3,3527.1,2.83516855]
[1754086330647,0.4545,3527.2,3527.1,3.0]
[1754086331074,0.4545,3527.2,3527.1,5.83519038]
[1754086331262,0.4545,3527.2,3527.1,3.0]
[1754086331657,0.9228,3527.2,3527.1,3.0]
[1754086332057,1.31273483,3527.2,3527.1,3.0]
[1754086332460,0.1416,3527.4,3527.1,5.83519038]
[1754086332461,4.7556,3527.4,3527.1,5.83519038]
[1754086332650,5.2101,3527.4,3527.1,5.83519038]
[1754086332984,4.7556,3527.4,3527.3,2.83502962]
[1754086333284,4.614,3527.4,3527.3,2.97662962]
[1754086333443,1e-08,3527.6,3527.3,5.97662962]
[1754086333648,1e-08,3527.6,3527.5,2.83486888]
[1754086333870,1e-08,3527.6,3527.5,5.97646888]
[1754086336384,1e-08,3527.6,3527.5,6.40746888]
[1754086336793,1e-08,3527.6,3527.5,5.97646888]
[1754086336989,1e-08,3527.6,3527.5,3.1416]
[1754086337176,0.94690001,3527.6,3527.5,3.0]
[1754086338093,0.94690001,3527.6,3527.3,0.1416]
[1754086338263,0.4972,3527.5,3527.3,2.97661488]
[1754086338588,0.4972,3527.4,3527.3,3.1416]
[1754086338894,0.4972,3527.4,3527.3,3.0]
[1754086339187,0.9469,3527.4,3527.3,3.0]
[1754086339394,0.4972,3527.4,3527.3,3.0]
[1754086339796,0.1416,3527.5,3527.3,3.0]
[1754086340094,1e-08,3527.6,3527.5,5.83486888]
[1754086340471,1e-08,3527.6,3527.5,6.26586888]
[1754086341394,1e-08,3527.6,3527.5,6.75736888]
[1754086341991,1e-08,3528.0,3527.9,5.83454746]
[1754086342194,1e-08,3528.9,3528.8,2.83382452]
[1754086342492,1e-08,3528.9,3528.8,5.83382452]
[1754086342661,1e-08,3528.9,3528.8,6.26482452]
[1754086342992,1e-08,3528.9,3528.8,6.75632452]
[1754086343194,1e-08,3528.9,3528.8,7.20412817]
[1754086344220,1e-08,3528.9,3528.8,7.75412817]
[1754086345095,1e-08,3528.9,3528.8,6.28162817]
[1754086345311,0.49720001,3528.9,3528.8,3.0]
[1754086345605,1e-08,3528.9,3528.8,3.0]
[1754086345809,0.94690001,3528.9,3527.4,6.812]
[1754086346110,0.9469,3528.8,3527.1,0.431]
[1754086346293,0.55,3528.7,3526.8,2.83738428]
[1754086346497,3.38406546,3528.5,3526.8,0.002]
[1754086346694,0.9469,3528.4,3527.3,3.0]
[1754086346902,8.39009806,3528.4,3527.6,2.83471297]
[1754086347124,2.83444574,3528.1,3527.3,3.0]
[1754086347291,0.9469,3528.0,3526.8,4.611]
[1754086347472,0.9469,3528.0,3526.9,2.83535115]
[1754086347672,0.4972,3528.0,3527.6,5.83477162]
[1754086347877,1.1657161,3528.3,3527.4,3.0]
[1754086348110,5.5589,3528.4,3527.7,3.0]
[1754086348316,2.83422611,3528.3,3527.7,3.0]
[1754086348477,2.83433112,3528.2,3527.7,3.0]
[1754086348678,2.83433112,3528.2,3527.0,0.4915]
[1754086348679,2.83462781,3527.8,3526.8,0.002]
[1754086348891,0.55,3527.9,3526.8,0.002]
[1754086349086,0.55,3527.6,3526.8,0.002]
[1754086349291,2.83525218,3527.1,3526.8,0.002]
[1754086349519,2.83502962,3527.3,3526.8,0.002]
[1754086349817,0.4972,3527.0,3526.8,0.002]
[1754086349995,2.83535115,3526.9,3526.8,0.002]
[1754086350193,0.4972,3526.9,3526.8,0.002]
[1754086351100,3.78225115,3526.9,3526.8,0.002]
[1754086351514,0.9469,3526.9,3526.8,0.002]
[1754086351749,3.78225115,3526.9,3526.8,0.002]
[1754086351952,0.4972,3526.9,3526.8,0.002]
[1754086352121,4.12964279,3526.9,3526.8,0.002]
[1754086352315,3.78225115,3526.9,3526.8,0.002]
[1754086352635,0.6388,3526.9,3526.8,0.002]
[1754086353563,0.1416,3526.9,3526.8,0.002]
[1754086354122,0.1416,3526.9,3526.8,2.83743155]
[1754086354755,0.1416,3526.9,3526.8,0.002]
[1754086354756,0.6388,3526.9,3526.8,0.002]
[1754086355169,3.47415115,3526.9,3526.8,0.002]
[1754086355325,0.98621512,3526.9,3526.8,0.002]
[1754086355833,0.6388,3526.9,3526.8,0.002]
[1754086357167,9.07585115,3526.9,3526.8,0.002]
[1754086358476,9.07585115,3526.9,3526.8,1e-08]
[1754086358757,2.83677179,3525.2,3524.6,0.002]
[1754086358941,4.604,3525.1,3524.6,0.002]
[1754086359143,2.83712088,3524.7,3524.6,0.002]
[1754086359342,1.69097707,3525.0,3524.6,0.002]
[1754086359659,0.4972,3524.7,3524.6,0.002]
[1754086360119,4.61,3524.7,3524.6,0.002]
[1754086360527,4.61,3524.7,3524.6,3.002]
[1754086360773,4.61,3524.7,3524.6,0.002]
[1754086360774,8.39402088,3524.7,3524.6,0.002]
[1754086361064,2.83681643,3525.1,3524.6,0.002]
[1754086361065,0.4972,3525.1,3524.6,0.002]
[1754086361414,5.1052,3525.0,3524.6,0.002]
[1754086361621,4.608,3524.9,3524.6,0.002]
[1754086361822,4.608,3524.9,3524.6,2.8391778]
[1754086362267,0.4972,3525.0,3524.6,0.002]
[1754086362560,0.4972,3526.2,3525.6,2.83632551]
[1754086362723,4.607,3525.9,3525.6,2.83632117]